bitfinex-derivatives/quotes_ETHF0:USTF0_20250210
["timestamp","ask_amount","ask_price","bid_price","bid_amount"]
[1739158188379,4.40978592,2616.3,2615.7,3.2078]
[1739158189688,0.06471057,2616.2,2615.2,3.2135368]
[1739158190080,4.9162726,2616.1,2615.2,3.2135368]
[1739158190285,0.5693,2616.0,2615.2,3.2135368]
[1739158190485,4.3614,2616.0,2615.2,3.2135368]
[1739158190681,4.2145141,2615.9,2615.2,3.2135368]
[1739158198693,1.853,2615.8,2615.2,3.2135368]
[1739158199098,4.27105026,2615.7,2615.2,3.2135368]
[1739158200690,4.25695845,2615.8,2615.2,0.0057368]
[1739158200893,3.27252351,2615.7,2615.2,0.0057368]
[1739158201097,0.06472656,2615.6,2615.2,0.0057368]
[1739158201396,3.2078,2615.4,2615.2,0.0057368]
[1739158201689,3.2078,2615.4,2615.2,1.57374778]
[1739158202995,1.853,2615.9,2615.2,4.78154778]
[1739158203191,3.2078,2616.3,2615.8,1.56801098]
[1739158203392,0.0057368,2616.5,2616.1,1.56801098]
[1739158203600,0.0057368,2616.5,2616.4,2.00513548]
[1739158203896,2.32004291,2617.4,2616.4,11.21293548]
[1739158203897,0.5728,2617.3,2616.4,11.21293548]
[1739158204093,3.39761268,2617.4,2616.2,0.5895]
[1739158204094,3.2078,2617.4,2616.8,5.21293548]
[1739158205200,3.2135368,2617.4,2616.8,5.21867228]
[1739158205396,3.2078,2617.2,2616.8,0.0057368]
[1739158205695,3.2078,2616.9,2615.9,5.21293548]
[1739158205994,9.33961462,2616.8,2615.9,5.21293548]
[1739158206193,9.27492945,2616.8,2615.9,5.21293548]
[1739158206388,5.0668,2616.8,2615.9,5.21293548]
[1739158206699,4.36222366,2616.7,2615.9,5.21293548]
[1739158206902,4.36222366,2616.7,2616.1,0.0057368]
[1739158208095,4.16786434,2616.7,2616.2,2.00513548]
[1739158208291,3.2078,2616.8,2616.5,2.00513548]
[1739158209501,3.2078,2616.8,2616.3,0.5867]
[1739158209699,3.2078,2616.8,2616.5,2.00513548]
[1739158210100,3.7752,2617.3,2616.6,3.2078]
[1739158210295,3.7752,2617.3,2616.9,2.00513548]
[1739158210492,3.2078,2617.3,2616.9,2.00513548]
[1739158210698,0.0057368,2617.4,2617.2,2.00513548]
[1739158211102,3.7832,2618.4,2617.2,8.58363548]
[1739158211302,3.7832,2618.4,2617.9,2.00513548]
[1739158211502,7.79633982,2618.4,2617.9,2.00513548]
[1739158211707,7.79633982,2618.4,2617.6,5.21293548]
[1739158211897,3.2078,2618.0,2617.3,3.7805]
[1739158212202,3.2078,2617.7,2617.0,3.2078]
[1739158212397,3.2078,2617.7,2616.7,2.00513548]
[1739158212398,0.5679,2617.6,2617.4,0.0057368]
[1739158212599,5.35313348,2617.6,2617.4,0.0057368]
[1739158213005,5.35313348,2617.6,2616.7,2.00513548]
[1739158213704,3.2078,2617.4,2616.7,2.00513548]
[1739158214203,4.35223911,2617.3,2616.8,0.0057368]
[1739158214407,1.1258,2617.6,2617.0,2.00513548]
[1739158214794,3.99268922,2617.5,2617.3,5.21293548]
[1739158215001,0.5692368,2617.9,2617.3,5.21293548]
[1739158215501,0.5692368,2617.9,2617.6,2.00513548]
[1739158215502,0.0057368,2617.9,2617.6,2.00513548]
[1739158216301,0.0057368,2617.9,2617.6,5.21293548]
[1739158216609,3.2078,2618.8,2617.6,5.21293548]
[1739158216914,3.2078,2618.8,2617.5,1.868]
[1739158216915,4.3877,2619.2,2618.2,2.00513548]
[1739158217101,4.29692044,2618.7,2618.5,2.00513548]
[1739158217406,4.29692044,2619.0,2618.5,2.00513548]
[1739158217706,3.2078,2619.2,2618.8,2.00513548]
[1739158217901,0.0057368,2619.0,2618.8,2.00513548]
[1739158219004,0.0057368,2619.0,2618.5,2.01087228]
[1739158219804,0.0057368,2619.0,2618.7,3.2078]
[1739158219995,0.0057368,2619.0,2618.8,2.00513548]
[1739158220904,0.0057368,2619.0,2618.9,0.5924]
[1739158221101,4.3929,2620.2,2618.9,0.5924]
[1739158221301,4.3929,2620.2,2619.8,2.00513548]
[1739158221500,4.15939619,2620.1,2619.8,2.00513548]
[1739158221701,1.1851,2620.2,2619.8,2.00513548]
[1739158222009,3.2078,2621.5,2620.1,2.00513548]
[1739158222208,3.2078,2621.5,2620.6,5.21293548]
[1739158222506,3.2078,2620.7,2620.0,2.00513548]
[1739158222702,3.2078,2620.9,2620.0,2.00513548]
[1739158222904,4.00307987,2620.6,2620.0,2.00513548]
[1739158223205,5.18567324,2620.8,2620.2,0.00572519]
[1739158223413,3.2078,2620.5,2620.2,0.00572519]
[1739158223907,4.07972814,2620.4,2620.2,0.00572519]
[1739158224407,3.2078,2620.5,2620.2,0.00572519]
[1739158224603,4.13030998,2620.4,2620.2,0.00572519]
[1739158225411,1.884,2620.3,2619.2,3.2078]
[1739158225607,3.2078,2619.7,2619.2,3.2078]
[1739158225808,3.2078,2619.4,2618.5,5.21293548]
[1739158226109,3.2078,2619.1,2618.2,5.21293548]
[1739158226411,3.2078,2618.8,2617.9,2.00513548]
[1739158226611,3.2078,2618.8,2618.4,0.00572519]
[1739158226913,4.3190174,2618.7,2618.5,2.00513548]
[1739158227210,0.00572519,2618.9,2618.6,3.2078]
[1739158227606,0.00572519,2618.9,2618.5,2.00513548]
[1739158227908,4.33998981,2618.8,2618.4,0.00572519]
[1739158228308,0.00572519,2618.9,2618.5,2.00513548]
[1739158228611,0.00572519,2618.9,2618.8,2.00513548]
[1739158229306,3.2078,2619.7,2618.8,2.00513548]
[1739158229704,3.2078,2619.3,2618.8,2.00513548]
[1739158230208,4.77675308,2619.2,2618.8,2.00513548]
[1739158230806,4.77675308,2619.2,2618.5,2.00513548]
[1739158231007,3.2078,2618.6,2618.4,0.00572519]
[1739158231309,4.22483691,2618.5,2617.6,2.00513548]
[1739158231510,3.2078,2618.1,2617.6,2.00513548]
[1739158232105,3.2078,2617.7,2617.0,5.21293548]
[1739158232408,4.23336066,2617.6,2617.0,5.21293548]
[1739158232608,4.23336066,2617.6,2617.1,0.00572519]
[1739158232808,4.83948585,2617.6,2617.1,0.00572519]
[1739158233210,6.74348585,2617.6,2617.1,0.00572519]
[1739158234103,4.83948585,2617.6,2617.1,0.00572519]
[1739158234304,0.60612519,2617.6,2617.1,0.00572519]
[1739158234511,0.00572519,2617.6,2617.4,5.43806871]
[1739158235116,3.7842,2618.4,2617.4,5.43806871]
[1739158235612,3.2078,2618.1,2617.4,2.23026871]
[1739158235911,0.5883,2618.0,2617.4,2.23026871]
[1739158236108,4.66942199,2618.0,2617.1,0.00572519]
[1739158236416,3.2078,2617.4,2617.1,0.00572519]
[1739158236711,0.5883,2617.3,2617.1,0.00572519]
[1739158236916,4.92890753,2617.3,2617.1,0.00572519]
[1739158237311,4.92890753,2617.3,2616.2,6.01966871]
[1739158237511,5.49530753,2617.3,2616.2,6.01966871]
[1739158237713,3.2078,2617.1,2616.2,2.81186871]
[1739158237914,3.2078,2617.1,2616.5,3.2078]
[1739158238119,4.09308103,2617.0,2616.2,6.01966871]
[1739158238314,3.2078,2617.1,2616.2,6.01966871]
[1739158238713,3.2078,2617.1,2616.3,0.00572519]
[1739158239013,3.0587,2617.3,2616.6,5.43806871]
[1739158239517,4.21275074,2617.2,2616.9,3.2078]
[1739158239813,3.8097,2617.8,2617.0,2.23026871]
[1739158240321,4.03817209,2617.4,2616.8,3.2078]
[1739158240810,4.03817209,2617.4,2616.6,2.23026871]
[1739158241410,4.03817209,2617.4,2616.6,5.43806871]
[1739158241611,4.03817209,2617.4,2616.6,2.23026871]
[1739158242213,4.03817209,2617.4,2616.8,3.2078]
[1739158242413,4.03817209,2617.4,2617.1,3.2078]
[1739158242616,4.03817209,2617.4,2616.8,3.2078]
[1739158243021,4.03817209,2617.4,2616.7,3.2078]
[1739158243411,4.03817209,2617.4,2616.6,2.23026871]
[1739158243614,4.23962134,2617.6,2616.6,2.23026871]
[1739158243817,5.1088,2617.7,2616.6,2.23026871]
[1739158244017,2.26352896,2617.6,2616.7,2.2934]
[1739158244212,3.7899,2618.8,2617.5,5.43806871]
[1739158244413,1.918,2619.5,2617.5,5.43806871]
[1739158244414,3.2078,2619.9,2618.7,2.23026871]
[1739158244715,4.82116688,2620.1,2619.2,2.23026871]
[1739158244915,3.2078,2620.0,2619.2,2.23026871]
[1739158245124,4.23906688,2619.9,2618.8,2.23026871]
[1739158245426,0.00572519,2619.6,2619.1,0.00572519]
[1739158246921,3.2078,2619.3,2618.4,5.43806871]
[1739158247118,3.2078,2619.0,2618.4,3.2078]
[1739158247518,4.13246568,2618.9,2618.4,3.2078]
[1739158247725,4.13246568,2618.9,2618.0,5.43806871]
[1739158248016,4.13246568,2618.9,2618.4,2.23026871]
[1739158248224,3.0474,2619.5,2618.4,2.23026871]
[1739158248421,3.0474,2619.5,2618.6,3.2078]
[1739158248614,1.1224,2619.5,2618.9,3.2078]
[1739158248817,0.00572519,2619.6,2619.2,5.43806871]
[1739158249216,0.00572519,2619.6,2619.5,3.2078]
[1739158250429,0.00572519,2619.6,2619.2,5.43806871]
[1739158250621,0.00572519,2619.6,2618.8,2.23026871]
[1739158251121,3.2078,2619.2,2618.4,5.43806871]
[1739158251324,0.5992,2619.1,2618.4,2.23026871]
[1739158251530,4.83979861,2619.1,2618.4,2.23026871]
[1739158252227,0.5992,2619.1,2618.4,2.23026871]
[1739158252426,0.5992,2619.1,2618.6,3.2078]
[1739158252624,4.31307248,2619.0,2618.2,0.00572519]
[1739158252826,3.2078,2618.9,2618.3,3.2078]
[1739158253134,0.5992,2619.1,2618.2,0.00572519]
[1739158253525,4.05655033,2619.0,2618.4,2.23026871]
[1739158253735,0.5992,2619.1,2618.4,2.23026871]
[1739158254340,3.2078,2618.9,2618.2,0.00572519]
[1739158254737,4.0476423,2618.8,2618.2,0.00572519]
[1739158255247,3.2078,2618.9,2618.2,0.00572519]
[1739158256438,4.00386918,2618.8,2618.2,0.00572519]
[1739158256839,3.2078,2618.9,2618.2,0.00572519]
[1739158257442,0.5992,2619.1,2618.2,0.00572519]
[1739158257443,0.5992,2619.1,2618.4,2.23026871]
[1739158257837,0.5992,2619.1,2618.6,3.2078]
[1739158258645,0.5992,2619.1,2618.7,3.2078]
[1739158258846,0.5992,2619.1,2618.4,5.43806871]
[1739158260349,3.2078,2618.9,2618.4,5.43806871]
[1739158260941,0.5992,2619.1,2618.4,5.43806871]
[1739158261149,0.5992,2619.1,2618.8,3.2078]
[1739158261445,0.5992,2619.1,2618.4,5.43806871]
[1739158262047,4.39266915,2619.0,2618.4,5.43806871]
[1739158262640,0.5992,2619.1,2618.4,5.43806871]
[1739158262844,0.5992,2619.1,2618.8,2.23026871]
[1739158263050,0.5992,2619.1,2619.0,3.2078]
[1739158263356,3.2078,2619.4,2619.0,3.2078]
[1739158263545,3.2078,2619.4,2618.8,2.23026871]
[1739158263747,3.2078,2619.1,2618.8,2.23026871]
[1739158263948,0.5782,2619.4,2618.8,2.23026871]
[1739158266151,3.7605,2619.5,2619.2,2.23026871]
[1739158266345,3.2078,2619.5,2619.2,2.23026871]
[1739158266548,3.8141,2620.0,2619.4,3.2078]
[1739158266743,3.8141,2620.0,2619.2,2.23026871]
[1739158266947,3.8141,2620.0,2619.4,3.2078]
[1739158267148,3.2078,2619.8,2619.1,3.2078]
[1739158267455,0.6063,2620.0,2619.2,5.43806871]
[1739158267650,0.6063,2620.0,2619.5,3.2078]
[1739158267853,0.5533,2620.2,2619.2,5.43806871]
[1739158268046,0.5533,2620.2,2619.5,3.2078]
[1739158268453,0.5533,2620.2,2619.4,3.2078]
[1739158269056,0.5533,2620.2,2619.2,2.23026871]
[1739158269752,0.5533,2620.2,2619.4,3.2078]
[1739158269954,3.2078,2620.7,2619.4,3.2078]
[1739158270152,4.3496,2621.0,2619.5,1.919]
[1739158270359,4.3496,2621.0,2620.6,3.2078]
[1739158270655,4.3496,2621.0,2620.5,3.2078]
[1739158271058,4.33778348,2620.9,2620.0,2.23026871]
[1739158271257,4.33778348,2620.9,2620.5,0.00572519]
[1739158271459,1.14752519,2621.0,2620.5,0.00572519]
[1739158272055,1.14752519,2621.0,2620.5,3.21352519]
[1739158272255,0.56762519,2621.0,2620.6,3.2078]
[1739158272456,0.00572519,2621.0,2620.9,3.2078]
[1739158272651,3.2078,2622.4,2620.9,50.0078]
[1739158272853,3.2078,2622.4,2621.8,5.43806871]
[1739158273164,0.5619,2622.7,2622.1,3.2078]
[1739158273165,8.18273037,2622.7,2622.1,3.2078]
[1739158273357,0.5619,2622.7,2622.1,3.2078]
[1739158273550,0.5619,2622.7,2622.2,2.23026871]
[1739158273752,0.56762519,2622.7,2622.4,3.2078]
[1739158274063,3.2078,2623.0,2622.4,3.2078]
[1739158274255,3.2078,2624.0,2622.7,3.2078]
[1739158274560,4.3787,2624.9,2623.9,3.2078]
[1739158274755,3.2078,2624.4,2623.9,3.2078]
[1739158275058,3.2078,2624.0,2623.5,3.2078]
[1739158275464,0.00572134,2624.4,2623.9,0.00572519]
[1739158276062,0.00572134,2624.4,2624.2,3.2078]
[1739158277563,0.00572134,2624.4,2624.1,2.23026871]
[1739158277958,0.00572134,2624.4,2624.3,3.2078]
[1739158278360,0.00572134,2624.4,2624.3,9.2078]
[1739158279461,0.00572134,2624.4,2624.3,3.2078]
[1739158280266,0.00572134,2624.4,2624.1,2.23026871]
[1739158281268,3.2078,2624.3,2623.9,0.00572519]
[1739158281470,3.2078,2624.0,2623.3,3.2078]
[1739158281764,1.976,2624.2,2622.9,2.23026871]
[1739158281765,3.2078,2623.7,2623.0,3.2078]
[1739158282164,4.603834,2623.6,2623.0,3.2078]
[1739158282477,5.1838,2624.2,2623.3,5.43806871]
[1739158282770,1.976,2624.2,2623.3,5.43806871]
[1739158282970,3.2078,2623.9,2623.3,5.43806871]
[1739158283559,5.1838,2624.2,2623.3,5.43806871]
[1739158283768,5.1838,2624.2,2623.0,0.00572519]
[1739158283769,3.2078,2623.4,2623.0,0.00572519]
[1739158283962,4.24990478,2623.8,2623.0,0.00572519]
[1739158283963,3.2078,2623.1,2623.0,0.00572519]
[1739158284267,4.24990478,2623.3,2623.0,0.00572519]
[1739158284466,3.8112,2623.5,2623.0,0.00572519]
[1739158284667,8.63870478,2623.5,2623.0,0.00572519]
[1739158285065,4.3888,2623.5,2623.0,0.00572519]
[1739158285367,4.13757493,2623.4,2623.0,0.00572519]
[1739158285572,1.181,2623.5,2623.0,0.00572519]
[1739158285775,4.022463,2623.4,2623.0,0.00572519]
[1739158286867,1.181,2623.5,2623.2,3.2078]
[1739158287069,0.6034,2623.5,2623.2,3.2078]
[1739158287271,0.6034,2623.5,2623.0,0.00572519]
[1739158287476,7.31883605,2623.4,2623.0,0.00572519]
[1739158288064,3.2078,2623.1,2622.5,2.23026871]
[1739158289272,3.21352519,2623.1,2622.5,2.2359939]
[1739158289773,3.21352519,2623.1,2622.5,0.00572519]
[1739158289969,3.2078,2622.8,2622.5,0.00572519]
[1739158290277,3.2078,2622.8,2621.8,3.2078]
[1739158290464,4.25894428,2622.7,2621.8,3.2078]
[1739158291474,4.25894428,2622.7,2622.0,0.00572519]
[1739158291672,3.2078,2622.5,2622.0,0.00572519]
[1739158292478,0.00572519,2623.1,2622.1,2.23026871]
[1739158292672,0.00572519,2623.1,2622.4,2.23026871]
[1739158292873,3.21352519,2623.1,2622.5,3.2078]
[1739158293172,3.21352519,2623.1,2622.4,2.23026871]
[1739158293373,0.00572519,2623.1,2622.4,2.23026871]
[1739158293772,3.21352519,2623.1,2622.4,2.23026871]
[1739158293976,0.00572519,2623.1,2622.4,5.43806871]
[1739158294278,0.00572519,2623.1,2622.8,2.23026871]
[1739158294671,0.00572519,2623.1,2623.0,3.2078]
[1739158294890,0.00572519,2623.1,2622.8,2.23026871]
[1739158296373,0.00572519,2623.1,2622.4,2.23026871]
[1739158296675,0.00572519,2623.1,2622.9,3.2078]
[1739158298782,0.00572519,2623.1,2622.8,2.23026871]
[1739158298982,0.00572519,2623.1,2623.0,3.2078]
[1739158299480,0.00572519,2623.1,2623.0,9.73896813]
[1739158299782,0.5667,2624.3,2623.0,11.15137222]
[1739158299977,3.2078,2624.1,2623.3,3.2078]
[1739158300283,3.2078,2623.6,2623.1,0.5625409]
[1739158300583,1.98567,2624.5,2623.1,0.5625409]
[1739158300584,0.5667,2623.5,2623.1,0.5625409]
[1739158300882,0.5667,2623.5,2623.1,0.00572519]
[1739158301679,3.2078,2623.3,2622.4,2.23026871]
[1739158301880,3.2078,2623.3,2622.5,0.5334491]
[1739158302181,3.2078,2623.3,2622.4,2.23026871]
[1739158302477,0.6051,2623.4,2622.8,2.23026871]
[1739158302984,0.6051,2623.4,2622.9,0.53412629]
[1739158303180,0.5667,2623.5,2622.9,3.2078]
[1739158303478,0.5667,2623.5,2623.0,0.53399896]
[1739158303670,0.5667,2623.5,2623.1,0.53408874]
[1739158303873,0.5667,2623.5,2623.2,2.23026871]
[1739158304074,3.2078,2624.4,2623.3,0.5338194]
[1739158304285,3.2078,2624.4,2623.6,5.43806871]
[1739158304583,3.2078,2624.7,2624.1,3.2078]
[1739158304771,3.2078,2624.7,2623.7,3.2078]
[1739158305082,3.2078,2624.7,2623.8,0.53320865]
[1739158305283,0.555,2624.9,2623.7,3.2078]
[1739158305582,0.00572519,2624.4,2623.8,0.53877254]
[1739158305775,0.00572519,2624.4,2623.9,0.53299273]
[1739158305971,0.00572519,2624.4,2623.8,0.00572519]
[1739158306176,0.00572519,2624.4,2623.9,0.53294074]
[1739158306376,0.00572519,2624.4,2623.8,0.00572519]
[1739158306585,0.00572519,2624.4,2624.0,3.2078]
[1739158306882,0.00572519,2624.4,2624.0,5.43806871]
[1739158307083,0.00572519,2624.4,2624.3,3.2078]
[1739158307582,0.00572519,2624.4,2624.0,2.23026871]
[1739158307881,0.00572519,2624.4,2624.1,0.53289486]
[1739158308078,0.00572519,2624.4,2624.0,2.23026871]
[1739158308275,0.00572519,2624.4,2624.1,0.53285989]
[1739158308475,0.00572519,2624.4,2624.2,3.74058143]
[1739158308681,0.00572519,2624.4,2624.2,3.2078]
[1739158309079,0.00572519,2624.4,2624.3,0.53270052]
[1739158309474,0.00572519,2624.4,2624.3,1.38522706]
[1739158309978,0.00572519,2624.4,2624.3,1.94928887]
[1739158310285,3.2078,2625.3,2624.3,1.94928887]
[1739158310479,3.2078,2625.3,2624.7,2.23026871]
[1739158310784,3.2078,2625.3,2624.8,3.7397477]
[1739158310983,3.2078,2625.3,2624.8,3.2078]
[1739158311280,0.5947,2625.6,2624.8,3.2078]
[1739158311474,0.00571418,2625.3,2624.8,3.2078]
[1739158311676,0.00571418,2625.3,2624.7,2.23026871]
[1739158312584,0.00571418,2625.3,2625.1,2.23026871]
[1739158313177,0.00571418,2625.3,2624.7,2.23026871]
[1739158313378,3.21351418,2625.3,2624.7,2.23026871]
[1739158313781,0.00571418,2625.3,2625.1,2.23026871]
[1739158314584,0.00571418,2625.3,2625.2,3.2078]
[1739158314983,20.04645,2627.8,2625.2,3.2078]
[1739158314984,3.2078,2627.5,2625.2,9.64323613]
[1739158315188,3.2078,2628.3,2627.4,3.2078]
[1739158315385,3.2078,2628.6,2627.9,3.2078]
[1739158315585,3.2078,2628.9,2627.9,3.2078]
[1739158315792,3.2078,2628.6,2627.9,3.2078]
[1739158315988,3.21624567,2628.0,2627.4,2.23026871]
[1739158316195,3.21351418,2627.7,2627.6,3.2078]
[1739158316791,3.2078,2629.2,2627.8,0.18911461]
[1739158317090,3.2078,2629.2,2628.5,3.2078]
[1739158317698,3.2078,2629.6,2629.0,2.23026871]
[1739158317899,3.2078,2629.9,2629.2,3.2078]
[1739158318300,0.5778,2630.4,2629.2,3.2078]
[1739158318301,3.2078,2630.4,2629.2,3.2078]
[1739158318508,3.2078,2630.4,2629.3,3.2078]
[1739158318704,4.14416884,2630.3,2629.3,3.2078]
[1739158318905,3.2078,2629.7,2629.2,2.23026871]
[1739158319200,5.2328,2630.3,2629.3,3.2078]
[1739158319601,4.01074888,2630.2,2629.6,2.23026871]
[1739158319797,3.2078,2630.3,2629.6,5.43806871]
[1739158320309,3.2078,2629.7,2629.2,2.23026871]
[1739158320504,3.2078,2629.7,2628.9,0.00571418]
[1739158320708,2.025,2630.0,2628.9,0.00571418]
[1739158320709,3.2078,2629.1,2628.9,0.00571418]
[1739158321105,4.75452401,2629.9,2629.0,3.2078]
[1739158321408,3.2078,2630.3,2629.5,5.43806871]
[1739158321607,3.2078,2630.6,2629.9,5.43806871]
[1739158322102,3.2078,2630.0,2629.5,2.23026871]
[1739158322310,3.2078,2629.6,2629.0,5.43806871]
[1739158322497,3.2078,2629.6,2628.9,0.00571418]
[1739158322697,3.2078,2629.6,2629.1,3.2078]
[1739158323114,4.26280132,2629.5,2629.0,2.23026871]
[1739158323315,3.2078,2629.3,2628.9,0.00571418]
[1739158323606,3.2078,2629.0,2628.2,2.23026871]
[1739158323912,3.2078,2629.6,2628.7,3.2078]
[1739158324110,0.5508,2629.8,2629.4,2.23026871]
[1739158324308,0.5991,2630.1,2629.7,3.2078]
[1739158324499,3.2078,2630.8,2629.8,2.23026871]
[1739158324700,3.2078,2630.7,2629.8,2.23026871]
[1739158324906,7.46974066,2630.7,2630.0,3.2078]
[1739158325109,0.00567507,2630.6,2630.3,3.2078]
[1739158325606,2.071,2631.5,2630.3,3.2078]
[1739158325607,3.2078,2632.2,2630.5,3.2078]
[1739158325805,3.2078,2633.5,2632.1,5.43806871]
[1739158326110,3.2078,2634.2,2633.1,2.23026871]
[1739158326302,3.2078,2634.3,2633.5,2.23026871]
[1739158326613,3.2078,2634.1,2633.6,3.2078]
[1739158326806,4.03210649,2634.2,2633.9,2.23026871]
[1739158327117,4.03210649,2634.2,2632.7,0.19266117]
[1739158327118,3.96052704,2634.0,2633.6,0.00570245]
[1739158327305,3.2078,2634.2,2633.6,0.00570245]
[1739158327502,3.2078,2634.2,2633.8,3.2078]
[1739158327809,3.2078,2634.1,2633.6,0.00570245]
[1739158328203,3.2078,2633.7,2633.6,0.00570245]
[1739158329006,7.59631055,2633.7,2632.8,3.2078]
[1739158329207,3.2078,2632.9,2632.3,2.23026871]
[1739158329406,3.2078,2632.9,2631.9,3.2078]
[1739158329407,3.2078,2632.5,2631.9,2.23026871]
[1739158329811,7.59631055,2632.8,2631.9,5.43806871]
[1739158330011,3.2078,2632.2,2631.9,2.23026871]
[1739158330214,3.498,2633.6,2631.1,2.352]
[1739158330215,3.2078,2632.1,2631.5,2.23026871]
[1739158330513,3.2078,2631.8,2631.1,2.23026871]
[1739158330714,3.2078,2631.8,2630.5,2.351]
[1739158330715,3.2078,2631.2,2630.4,3.2078]
[1739158330906,3.2078,2631.0,2630.4,3.2078]
[1739158331104,3.2078,2631.8,2630.7,5.43806871]
[1739158331310,3.2078,2631.8,2631.1,2.23026871]
[1739158331505,3.2078,2632.5,2631.5,2.23026871]
[1739158331713,0.00570245,2631.7,2631.5,2.23026871]
[1739158331915,0.00570245,2631.7,2631.1,4.59926871]
[1739158332108,0.00570245,2631.7,2631.5,2.23026871]
[1739158332509,0.00570245,2631.7,2631.5,8.23026871]
[1739158333014,3.7787,2633.4,2631.6,4.96266385]
[1739158333317,0.5709,2633.4,2632.6,2.23026871]
[1739158334006,3.2078,2633.0,2632.2,5.43806871]
[1739158334212,3.2078,2633.0,2631.5,0.1854674]
[1739158334213,3.2078,2633.0,2631.8,2.23026871]
[1739158334407,3.2078,2632.1,2631.8,2.23026871]
[1739158334617,3.2078,2632.1,2631.4,2.23026871]
[1739158334915,3.2078,2632.1,2631.0,2.23026871]
[1739158335215,3.2078,2631.8,2631.0,2.23026871]
[1739158335420,3.2078,2631.8,2630.9,3.2078]
[1739158335719,3.2078,2631.1,2630.2,2.23026871]
[1739158336134,4.87353011,2631.7,2631.0,5.43806871]
[1739158336135,0.00570245,2631.7,2631.0,5.43806871]
[1739158336413,0.00570245,2631.7,2631.4,3.2078]
[1739158336618,0.00570245,2631.7,2631.4,2.23026871]
[1739158336814,0.00570245,2631.7,2631.4,5.43806871]
[1739158337116,0.00570245,2631.7,2630.7,3.2078]
[1739158337117,3.21350245,2631.7,2630.7,3.2078]
[1739158337314,3.2078,2631.3,2630.7,3.2078]
[1739158337521,3.2078,2631.3,2630.4,0.00570245]
[1739158337819,3.2078,2631.0,2630.4,40.80570245]
[1739158338017,3.2078,2630.7,2630.4,0.00570245]
[1739158338414,4.08095935,2630.6,2629.9,40.8]
[1739158338711,3.2078,2630.4,2629.9,40.8]
[1739158339113,3.2078,2630.8,2629.9,40.8]
[1739158339321,3.2078,2630.5,2629.9,40.8]
[1739158339518,3.2078,2630.5,2629.8,5.43806871]
[1739158339718,3.2078,2630.5,2630.1,0.00570245]
[1739158339915,3.2078,2630.2,2630.1,0.00570245]
[1739158340218,3.2078,2630.2,2629.8,3.2078]
[1739158340516,3.2078,2629.9,2629.4,2.23026871]
[1739158340822,3.2078,2629.9,2629.0,5.43806871]
[1739158341115,0.6048,2630.4,2628.6,5.43806871]
[1739158341116,3.2078,2629.3,2628.6,5.43806871]
[1739158341313,3.2078,2629.3,2628.6,43.03026871]
[1739158341515,3.2078,2629.3,2628.7,0.00570245]
[1739158341516,0.00570245,2629.2,2628.7,0.00570245]
[1739158341916,0.00570245,2629.2,2629.0,2.23026871]
[1739158342123,0.5844,2630.3,2629.0,2.23026871]
[1739158342319,3.2078,2630.0,2629.4,5.43806871]
[1739158342511,3.2078,2630.0,2629.1,3.2078]
[1739158342713,3.2078,2629.7,2628.7,0.00570245]
[1739158342921,3.2078,2629.3,2628.7,0.00570245]
[1739158343313,4.13651653,2629.2,2628.7,0.00570245]
[1739158343620,3.2078,2629.0,2627.9,3.2078]
[1739158343821,3.2078,2628.7,2627.9,3.2078]
[1739158344121,3.2078,2628.1,2627.4,2.23026871]
[1739158344321,2.377,2628.8,2627.2,40.8]
[1739158344322,3.2078,2627.5,2627.2,40.8]
[1739158344517,3.2078,2627.5,2627.0,2.23026871]
[1739158344721,3.2078,2627.5,2626.6,2.23026871]
[1739158344722,4.12726272,2627.4,2626.6,2.23026871]
[1739158344919,4.12726272,2627.4,2627.0,2.23597116]
[1739158345125,0.00570245,2627.5,2627.2,3.2078]
[1739158345326,0.00570245,2627.5,2627.4,2.23026871]
[1739158345522,0.00570245,2627.5,2627.0,2.23597116]
[1739158345829,3.2078,2627.3,2627.0,0.00570245]
[1739158346025,4.13251188,2627.5,2627.0,2.23597116]
[1739158346325,0.00570245,2627.5,2627.0,0.00570245]
[1739158346629,4.12680943,2627.4,2627.0,0.00570245]
[1739158346824,3.2078,2627.2,2626.3,3.2078]
[1739158347022,3.2078,2626.9,2626.2,5.43806871]
[1739158347327,3.2078,2626.9,2626.2,2.23026871]
[1739158348224,3.2078,2626.9,2626.3,0.00570245]
[1739158348422,5.5938,2627.2,2626.3,0.00570245]
[1739158348933,4.3828621,2627.1,2626.3,0.00570245]
[1739158349118,4.3828621,2627.1,2626.4,3.2078]
[1739158349325,4.3828621,2627.1,2626.3,0.00570245]
[1739158349326,3.2078,2626.7,2626.3,0.00570245]
[1739158349624,0.5565,2627.4,2626.6,2.23026871]
[1739158349625,3.7643,2627.4,2626.6,2.23026871]
[1739158349828,3.7643,2627.4,2626.9,3.2078]
[1739158350228,3.7643,2627.4,2626.9,3.20125834]
[1739158350430,0.00570245,2627.5,2627.2,3.2078]
[1739158350631,0.00570245,2627.5,2627.4,2.23026871]
[1739158350933,0.00570245,2627.5,2627.4,43.03026871]
[1739158351133,0.00570245,2627.5,2627.4,40.8]
[1739158351335,0.00570245,2627.5,2627.4,43.03026871]
[1739158353433,0.00570245,2627.5,2627.4,49.03026871]
[1739158353734,0.00570245,2627.5,2627.4,43.03026871]
[1739158354125,0.00570245,2627.5,2627.4,2.23026871]
[1739158354829,0.00570245,2627.5,2627.4,8.23026871]
[1739158355034,1.1695,2628.9,2627.4,10.59926871]
[1739158355227,4.3773,2628.9,2628.3,3.2078]
[1739158355427,4.3773,2628.9,2627.8,2.23026871]
[1739158355632,4.06392904,2628.8,2628.0,3.2078]
[1739158356434,0.00570245,2628.7,2628.3,3.2078]
[1739158356637,0.00570245,2628.7,2628.6,2.23026871]
[1739158357338,0.5911,2629.8,2628.6,10.59026871]
[1739158357525,3.2078,2629.4,2629.1,2.23026871]
[1739158357729,3.2078,2629.7,2629.1,5.43806871]
[1739158358739,3.21350245,2629.7,2629.1,5.43806871]
[1739158358941,3.2078,2629.4,2628.7,46.23806871]
[1739158359233,0.00570245,2629.7,2629.3,3.2078]
[1739158359936,0.00570245,2629.7,2629.6,3.2078]
[1739158360637,0.00570245,2629.7,2629.6,9.2078]
[1739158360832,3.2078,2630.4,2629.6,9.2078]
[1739158361032,3.2078,2630.4,2630.3,2.23026871]
[1739158361332,3.7752,2630.9,2630.3,5.43806871]
[1739158361540,3.7752,2630.9,2629.9,46.23806871]
[1739158361541,3.2078,2630.5,2629.9,46.23806871]